Workbook

Sheet Sheet1
D1: Solid-Liquid-Vapor Equilibrium with the Peng-Robinson Equation of State
E2: Version 1.4 | I2: For Educational Use Only!
F3: Report errors to R. L. Smith; Email: smith@scf.che.tohoku.ac.jp
A4: =COLUMN() -> 1 | B4: =COLUMN() -> 2 | C4: =COLUMN() -> 3 | D4: =COLUMN() -> 4 | E4: =COLUMN() -> 5 | F4: =COLUMN() -> 6 | G4: =COLUMN() -> 7 | H4: =COLUMN() -> 8 | I4: =COLUMN() -> 9 | J4: =COLUMN() -> 10 | K4: =COLUMN() -> 11 | L4: =COLUMN() -> 12 | M4: =COLUMN() -> 13 | N4: =COLUMN() -> 14 | O4: =COLUMN() -> 15 | P4: =COLUMN() -> 16 | Q4: =COLUMN() -> 17 | R4: =COLUMN() -> 18 | S4: =COLUMN() -> 19 | T4: =COLUMN() -> 20 | U4: =COLUMN() -> 21 | V4: =COLUMN() -> 22 | W4: =COLUMN() -> 23
D5: Pure component properties | M5: Solid Properties | Q5: Binary Interaction
M6: ln(Psub [Pa] )=A+B/(t[K]+C) | Q6: Parameters
B7: No. | C7: Substance Name | D7: Formula | E7: MW | F7: Tc / K | G7: Pc/ Pa | H7: Acentric factor | K7: Tmelt [C] | L7: Density [kg/m3] | M7: Solid Molar Volume (cm3/mol) | N7: A | O7: B | P7: C | Q7: amix term k(i,j) | R7: j = 1 | S7: 2 | U7: bmix term l(i,j) | V7: j=1 | W7: 2
B8: 1 | C8: Carbon Dioxide | D8: CO2 | E8: 44.01 | F8: 304.1 | G8: 7380000 | H8: 0.225 | I8: solvent | Q8: i = 1 | R8: 0 | S8: 0.08 | U8: i=1 | V8: 0 | W8: -0.04
B9: 2 | C9: Biphenyl | D9: C12H10 | E9: 154.211 | F9: 801 | G9: 3380000 | H9: 0.404 | I9: solid solute | K9: 69.2 | L9: =1/M9*E9*1000 -> 1040.981504 | M9: 148.14 | N9: 30.608 | O9: -9115.9 | P9: 0 | Q9: 2 | R9: =S8 -> 0.08 | S9: 0 | U9: 2 | V9: =W8 -> -0.04 | W9: 0
J10: Pmelt [MPa]: | K10: =EXP(N9+O9/(K9+273.15+P9))/1000000 -> 5.354765094e-05
E14: Calculation range | G14: =COLUMN()-7 -> 0 | H14: =COLUMN()-7 -> 1 | I14: 2 | J14: 3 | K14: 4 | L14: 5 | M14: 6 | N14: 7 | O14: 8 | P14: 9 | Q14: 10 | R14: 11 | S14: 12 | T14: 13 | U14: 14 | V14: 15 | W14: 16 | X14: 17 | Y14: 18 | Z14: 19
D15: Pstart: | E15: 0.1 | F15: MPa | J15: Data Table for Calculations | Y15: Number of
D16: Pend: | E16: 40 | F16: MPa | W16: Ideal gas | X16: Enhancement | Y16: Iterations
D17: Pinc: | E17: 1 | F17: MPa | I17: Solid phase properties | M17: Vapor phase properties | R17: Liquid phase properties | V17: Equilibrium ratios, Ki=yi/xi | W17: solubility | X17: Factor | Y17: SV +SLV+T | AA17: Notes
D18: Tstart: | E18: 69.2 | F18: oC | G18: P [MPa] | H18: T [oC] | I18: fs [Pa] | J18: rho [kg/m3] | K18: y(1) [-] | L18: y(2) [-] | M18: fv(1) [Pa] | N18: fv(2) [Pa] | O18: rho [kg/m3] | P18: x(1) [-] | Q18: x(2) [-] | R18: fL(1) [Pa] | S18: fL(2) [Pa] | T18: rho [kg/m3] | U18: K(1) [-] | V18: K(2) [-] | W18: y(2)ideal [-] | X18: E [-] | Y18: N | AF18: T [C] | AG18: 64.19
G19: 0.1 | H19: 69.19 | I19: 53.78508216 | J19: 1040.981504 | K19: 0.9994432133 | L19: 0.0005567866647 | M19: 99591.06785 | N19: 53.78508214 | O19: 1.553951637 | P19: 0.003553254084 | Q19: 0.9964467459 | R19: 99591.06785 | S19: 53.79272011 | T19: 915.4808508 | U19: 281.2754702 | V19: 0.000558772124 | W19: 0.0005350601742 | X19: 1.040605695 | Y19: 2+ 2+ 1 | Z19: Number of substances: 2 | AF19: P [MPa] | AG19: 15.97
D20: Convergence Criteria | G20: 1.1 | H20: 67.20714459 | I20: 48.5331628 | J20: 1040.981504 | K20: 0.9999346791 | L20: 6.532092845e-05 | M20: 1056912.539 | N20: 48.53316281 | O20: 17.82636727 | P20: 0.04009258281 | Q20: 0.9599074172 | R20: 1056912.539 | S20: 48.54007115 | T20: 915.8778498 | U20: 24.94064011 | V20: 6.80491965e-05 | W20: 4.165215572e-05 | X20: 1.568248445 | Y20: 2+ 3+ 3
D21: Mole fraction, Dy/y: | E21: 1e-05 | G21: 2.1 | H21: 65.17372014 | I21: 43.56630589 | J21: 1040.981504 | K21: 0.9999549043 | L21: 4.509566576e-05 | M21: 1942110.218 | N21: 43.56630589 | O21: 35.68272918 | P21: 0.07859075432 | Q21: 0.9214092457 | R21: 1942110.218 | S21: 43.57239055 | T21: 916.3676155 | U21: 12.72356924 | V21: 4.894205911e-05 | W21: 1.857376829e-05 | X21: 2.427922276 | Y21: 2+ 3+ 3 | AE21: y1 | AF21: y2 | AG21: ysum | AH21: F | AI21: ln phi | AJ21: ln (y2) | AK21: Psub [Pa] | AL21: -(Poynting+ln(Psub/P))
D22: Mole fraction, Dx/x: | E22: 1e-05 | G22: 3.1 | H22: 63.0865109 | I22: 38.88876008 | J22: 1040.981504 | K22: 0.9999586652 | L22: 4.133481108e-05 | M22: 2753535.916 | N22: 38.88876009 | O22: 55.52024752 | P22: 0.1193034995 | Q22: 0.8806965005 | R22: 2753535.916 | S22: 38.8940745 | T22: 916.9718083 | U22: 8.381637329 | V22: 4.693422883e-05 | W22: 1.064432623e-05 | X22: 3.883271726 | Y22: 2+ 3+ 3 | AE22: =(1-AF22) -> 0.99999999 | AF22: 1e-08 | AG22: =SUM(AE22:AF22) -> 1 | AH22: =AI22+AJ22+AL22 -> -13.44268853 | AI22: =LnPhiV_i_Tci_Pci_wi_kijm_lijm_T_P_xyi(2,$F$8:$F$9,$G$8:$G$9,$H$8:$H$9,$R$8:$S$9,$V$8:$W$9,$AG$18,$AG$19*1000000,AE22:AF22) -> -7.179589346 | AJ22: =LN(AF22) -> -18.42068074 | AK22: =EXP($N$9+$O$9/($AG$18+273.15+$P$9)) -> 36.05750686 | AL22: =-($M$9/1000000*($AG$19*1000000-AK22)/(8.314*(273.15+$AG$18))+LN(AK22/($AG$19*1000000))) -> 12.15758156
D23: Equilibrium function, F1 (SLV calculation): | E23: 1e-05 | G23: 4.1 | H23: 60.94418829 | I23: 34.50979664 | J23: 1040.981504 | K23: 0.9999562583 | L23: 4.374170633e-05 | M23: 3489131.168 | N23: 34.50979665 | O23: 77.91447294 | P23: 0.1625063082 | Q23: 0.8374936918 | R23: 3489131.168 | S23: 34.51439588 | T23: 917.7188905 | U23: 6.153338102 | V23: 5.222929648e-05 | W23: 6.763860222e-06 | X23: 6.466973724 | Y23: 2+ 4+ 3 | AE23: =(1-AF23) -> 0.99999 | AF23: 1e-05 | AG23: 1 | AH23: =AI23+AJ23+AL23 -> -6.535446958 | AI23: =LnPhiV_i_Tci_Pci_wi_kijm_lijm_T_P_xyi(2,$F$8:$F$9,$G$8:$G$9,$H$8:$H$9,$R$8:$S$9,$V$8:$W$9,$AG$18,$AG$19*1000000,AE23:AF23) -> -7.180103049 | AJ23: -11.51292546 | AK23: =EXP($N$9+$O$9/($AG$18+273.15+$P$9)) -> 36.05750686 | AL23: =-($M$9/1000000*($AG$19*1000000-AK23)/(8.314*(273.15+$AG$18))+LN(AK23/($AG$19*1000000))) -> 12.15758156
D24: Equilibrium function, F2 (SLVE calculation): | E24: 1e-05 | G24: 5.1 | H24: 58.74964409 | I24: 30.44620864 | J24: 1040.981504 | K24: 0.9999485121 | L24: 5.148786372e-05 | M24: 4146318.825 | N24: 30.44620866 | O24: 103.7433098 | P24: 0.2084594887 | Q24: 0.7915405113 | R24: 4146318.825 | S24: 30.45015084 | T24: 918.6423707 | U24: 4.796848146 | V24: 6.504766717e-05 | W24: 4.540000193e-06 | X24: 11.34093866 | Y24: 2+ 4+ 3 | AE24: 0.9999 | AF24: 0.0001 | AG24: 1 | AH24: =AI24+AJ24+AL24 -> -4.237487193 | AI24: -7.184728378 | AJ24: -9.210340372 | AK24: 36.05750686 | AL24: 12.15758156
D25: Calculation aspects | G25: 6.1 | H25: 56.51565626 | I25: 26.7288433 | J25: 1040.981504 | K25: 0.9999328644 | L25: 6.713561758e-05 | M25: 4721913.956 | N25: 26.72884336 | O25: 134.4362175 | P25: 0.2573126548 | Q25: 0.7426873452 | R25: 4721913.956 | S25: 26.7321928 | T25: 919.7833384 | U25: 3.886061745 | V25: 9.039553187e-05 | W25: 3.151113559e-06 | X25: 21.30536279 | Y25: 2+ 4+ 3 | AE25: 0.9998 | AF25: 0.0002 | AG25: 1 | AH25: -3.549473702 | AI25: -7.189862067 | AJ25: -8.517193191 | AK25: 36.05750686 | AL25: 12.15758156
D26: Newton step in Temperature: | E26: 0.01 | G26: 7.1 | H26: 54.27783257 | I26: 23.4161622 | J26: 1040.981504 | K26: 0.9999012092 | L26: 9.879078468e-05 | M26: 5212196.776 | N26: 23.41616237 | O26: 172.5253608 | P26: 0.3088435796 | Q26: 0.6911564204 | R26: 5212196.776 | S26: 23.41899674 | T26: 921.1832593 | U26: 3.237565148 | V26: 0.0001429354944 | W26: 2.241087111e-06 | X26: 44.08163529 | Y26: 2+ 5+ 3 | AE26: 0.9997 | AF26: 0.0003 | AG26: 1 | AH26: -3.149136407 | AI26: -7.19498988 | AJ26: -8.111728083 | AK26: 36.05750686 | AL26: 12.15758156
D27: Initial x1: | E27: 0.0001 | G27: 8.1 | H27: 52.12360997 | I27: 20.62243068 | J27: 1040.981504 | K27: 0.999827808 | L27: 0.0001721919656 | M27: 5613645.494 | N27: 20.62243101 | O27: 223.0053219 | P27: 0.3617654754 | Q27: 0.6382345246 | R27: 5613645.494 | S27: 20.62485846 | T27: 922.8508652 | U27: 2.763745785 | V27: 0.0002697941884 | W27: 1.633633601e-06 | X27: 105.4042752 | Y27: 2+ 5+ 3 | AE27: 0.9996 | AF27: 0.0004 | AG27: 1 | AH27: -2.866576254 | AI27: -7.200111799 | AJ27: -7.824046011 | AK27: 36.05750686 | AL27: 12.15758156
G28: 9.1 | H28: 50.24615024 | I28: 18.56638558 | J28: 1040.981504 | K28: 0.999607647 | L28: 0.0003923529672 | M28: 5925805.851 | N28: 18.56638511 | O28: 296.8531642 | P28: 0.4121869337 | Q28: 0.5878130663 | R28: 5925805.851 | S28: 18.56857002 | T28: 924.7000531 | U28: 2.425131816 | V28: 0.0006674791524 | W28: 1.235773113e-06 | X28: 317.495957 | Y28: 3+ 6+ 3 | AE28: 0.9995 | AF28: 0.0005 | AG28: 1 | AH28: -2.64854871 | AI28: -7.205227807 | AJ28: -7.60090246 | AK28: 36.05750686 | AL28: 12.15758156
G29: 10.1 | H29: 48.95514962 | I29: 17.56138043 | J29: 1040.981504 | K29: 0.9987273531 | L29: 0.001272646858 | M29: 6159142.336 | N29: 17.56135918 | O29: 411.9956324 | P29: 0.4523378124 | Q29: 0.5476621876 | R29: 6159142.336 | S29: 17.56352698 | T29: 926.4500609 | U29: 2.207923649 | V29: 0.002323780767 | W29: 9.944731973e-07 | X29: 1279.719616 | Y29: 4+ 6+ 3 | AE29: 0.999443 | AF29: 0.000557 | AG29: 1 | AH29: -2.54350504 | AI29: -7.208141279 | AJ29: -7.492945318 | AK29: 36.05750686 | AL29: 12.15758156
G30: 11.1 | H30: 48.32661741 | I30: 17.58221778 | J30: 1040.981504 | K30: 0.9964216579 | L30: 0.003578342085 | M30: 6344420.081 | N30: 17.58219006 | O30: 532.8786753 | P30: 0.4783956208 | Q30: 0.5216043792 | R30: 6344420.081 | S30: 17.58454073 | T30: 927.8776152 | U30: 2.082840257 | V30: 0.006860260817 | W30: 8.561717475e-07 | X30: 4179.467607 | Y30: 6+ 5+ 3 | AE30: 0.9993 | AF30: 0.0007 | AG30: 1 | AH30: -2.322290681 | AI30: -7.215442014 | AJ30: -7.264430223 | AK30: 36.05750686 | AL30: 12.15758156
G31: 12.1 | H31: 48.04486421 | I31: 18.13834123 | J31: 1040.981504 | K31: 0.9936471086 | L31: 0.006352891356 | M31: 6512788.086 | N31: 18.1382896 | O31: 611.5082573 | P31: 0.4965733208 | Q31: 0.5034266792 | R31: 6512788.086 | S31: 18.14083711 | T31: 929.1096458 | U31: 2.001007841 | V31: 0.01261929814 | W31: 7.661181318e-07 | X31: 8292.313016 | Y31: 6+ 4+ 3 | AE31: 0.9992 | AF31: 0.0008 | AG31: 1 | AH31: -2.193857454 | AI31: -7.220540181 | AJ31: -7.13089883 | AK31: 36.05750686 | AL31: 12.15758156
G32: 13.1 | H32: 47.91766303 | I32: 18.96407379 | J32: 1040.981504 | K32: 0.9909852867 | L32: 0.009014713293 | M32: 6676052.972 | N32: 18.96401883 | O32: 664.0404382 | P32: 0.511177337 | Q32: 0.488822663 | R32: 6676052.972 | S32: 18.96676714 | T32: 930.2641286 | U32: 1.938633063 | V32: 0.01844168443 | W32: 6.997236543e-07 | X32: 12883.24789 | Y32: 6+ 4+ 3 | AE32: 0.9991 | AF32: 0.0009 | AG32: 1 | AH32: -2.081166604 | AI32: -7.225632366 | AJ32: -7.013115795 | AK32: 36.05750686 | AL32: 12.15758156
G33: 14.1 | H33: 47.8769673 | I33: 19.97622502 | J33: 1040.981504 | K33: 0.988485477 | L33: 0.01151452305 | M33: 6837996.983 | N33: 19.97617836 | O33: 702.7818665 | P33: 0.523774431 | Q33: 0.476225569 | R33: 6837996.983 | S33: 19.97894819 | T33: 931.3795613 | U33: 1.887235074 | V33: 0.02417871655 | W33: 6.477622134e-07 | X33: 17775.84862 | Y33: 6+ 3+ 2 | AE33: 0.999 | AF33: 0.001 | AG33: 1 | AH33: -1.980892275 | AI33: -7.230718553 | AJ33: -6.907755279 | AK33: 36.05750686 | AL33: 12.15758156
G34: 15.1 | H34: 47.89066716 | I34: 21.14117078 | J34: 1040.981504 | K34: 0.9861238798 | L34: 0.0138761202 | M34: 7000042.424 | N34: 21.14111541 | O34: 733.2971413 | P34: 0.5350710798 | Q34: 0.4649289202 | R34: 7000042.424 | S34: 21.14437056 | T34: 932.4797239 | U34: 1.842977348 | V34: 0.02984568092 | W34: 6.055974437e-07 | X34: 22913.10894 | Y34: 5+ 2+ 2 | AE34: 0.9989 | AF34: 0.0011 | AG34: 1 | AH34: -1.890662268 | AI34: -7.235798725 | AJ34: -6.812445099 | AK34: 36.05750686 | AL34: 12.15758156
G35: 16.1 | H35: 47.94618256 | I35: 22.45421471 | J35: 1040.981504 | K35: 0.9838746234 | L35: 0.01612537658 | M35: 7163277.482 | N35: 22.45422872 | O35: 758.3525106 | P35: 0.5454267443 | Q35: 0.4545732557 | R35: 7163277.482 | S35: 22.45727965 | T35: 933.5696708 | U35: 1.803862084 | V35: 0.03547365882 | W35: 5.707779379e-07 | X35: 28251.57651 | Y35: 1+ 1+ 2 | AE35: 0.9988 | AF35: 0.0012 | AG35: 1 | AH35: -1.808725033 | AI35: -7.240872867 | AJ35: -6.725433722 | AK35: 36.05750686 | AL35: 12.15758156
G36: 17.1 | H36: 48.03007935 | I36: 23.90620162 | J36: 1040.981504 | K36: 0.9817161486 | L36: 0.0182838514 | M36: 7327905.086 | N36: 23.90628316 | O36: 779.5615036 | P36: 0.5550732875 | Q36: 0.4449267125 | R36: 7327905.086 | S36: 23.90977769 | T36: 934.6590858 | U36: 1.768624379 | V36: 0.04109407435 | W36: 5.413991979e-07 | X36: 33771.47856 | Y36: 5+ 1+ 3 | AE36: 0.998 | AF36: 0.002 | AG36: 1 | AH36: -1.338273563 | AI36: -7.281247021 | AJ36: -6.214608098 | AK36: 36.05750686 | AL36: 12.15758156
G37: 18.1 | H37: 48.13860404 | I37: 25.5047027 | J37: 1040.981504 | K37: 0.9796317625 | L37: 0.02036823752 | M37: 7494468.639 | N37: 25.50480817 | O37: 797.886185 | P37: 0.5641534835 | Q37: 0.4358465165 | R37: 7494468.639 | S37: 25.50856844 | T37: 935.7492783 | U37: 1.736463199 | V37: 0.04673259221 | W37: 5.164148696e-07 | X37: 39441.61705 | Y37: 6+ 1+ 3 | AE37: 0.997 | AF37: 0.003 | AG37: 1 | AH37: -0.9827204462 | AI37: -7.331159012 | AJ37: -5.80914299 | AK37: 36.05750686 | AL37: 12.15758156
G38: 19.1 | H38: 48.26661267 | I38: 27.25397161 | J38: 1040.981504 | K38: 0.9776081576 | L38: 0.02239184243 | M38: 7663152.766 | N38: 27.2540821 | O38: 813.9803389 | P38: 0.5727682714 | Q38: 0.4272317286 | R38: 7663152.766 | S38: 27.25816046 | T38: 936.8422366 | U38: 1.706812696 | V38: 0.05241146883 | W38: 4.94938727e-07 | X38: 45241.6455 | Y38: 7+ 1+ 3 | AE38: 0.996 | AF38: 0.004 | AG38: 1 | AH38: -0.7443209352 | AI38: -7.380441574 | AJ38: -5.521460918 | AK38: 36.05750686 | AL38: 12.15758156
G39: 20.1 | H39: 48.41091258 | I39: 29.16189025 | J39: 1040.981504 | K39: 0.9756344505 | L39: 0.02436554952 | M39: 7834146.365 | N39: 29.16206726 | O39: 828.295086 | P39: 0.5809940728 | Q39: 0.4190059272 | R39: 7834146.365 | S39: 29.16642824 | T39: 937.9402016 | U39: 1.679250265 | V39: 0.05815084689 | W39: 4.763389711e-07 | X39: 51151.70287 | Y39: 7+ 1+ 3 | AE39: 0.995 | AF39: 0.005 | AG39: 1 | AH39: -0.5698197654 | AI39: -7.429083955 | AJ39: -5.298317367 | AK39: 36.05750686 | AL39: 12.15758156
G40: 21.1 | H40: 48.56918855 | I40: 31.23832498 | J40: 1040.981504 | K40: 0.9737020164 | L40: 0.02629798355 | M40: 8007611.93 | N40: 31.23849283 | O40: 841.1556859 | P40: 0.5888880098 | Q40: 0.4111119902 | R40: 8007611.93 | S40: 31.24317338 | T40: 939.0444548 | U40: 1.653458723 | V40: 0.06396793131 | W40: 4.601365494e-07 | X40: 57152.56392 | Y40: 8+ 1+ 3 | AE40: 0.994 | AF40: 0.006 | AG40: 1 | AH40: -0.4354917717 | AI40: -7.477077519 | AJ40: -5.11599581 | AK40: 36.05750686 | AL40: 12.15758156
G41: 22.1 | H41: 48.73933251 | I41: 33.49379243 | J41: 1040.981504 | K41: 0.9718034425 | L41: 0.02819655753 | M41: 8183655.191 | N41: 33.49395094 | O41: 852.8069625 | P41: 0.5964969374 | Q41: 0.4035030626 | R41: 8183655.191 | S41: 33.49901122 | T41: 940.1563011 | U41: 1.629184295 | V41: 0.06987941392 | W41: 4.459451622e-07 | X41: 63228.75528 | Y41: 9+ 1+ 3 | AE41: 0.993931 | AF41: 0.006069 | AG41: 1 | AH41: -0.427344841 | AI41: -7.480364965 | AJ41: -5.104561432 | AK41: 36.05750686 | AL41: 12.15758156
G42: 23.1 | H42: 48.91989795 | I42: 35.94088156 | J42: 1040.981504 | K42: 0.9699321597 | L42: 0.03006784034 | M42: 8362389.351 | N42: 35.94111315 | O42: 863.4356525 | P42: 0.6038536128 | Q42: 0.3961463872 | R42: 8362389.351 | S42: 35.94650538 | T42: 941.2761516 | U42: 1.606237239 | V42: 0.07590083187 | W42: 4.33468145e-07 | X42: 69365.74391 | Y42: 9+ 1+ 3 | AE42: 0.992 | AF42: 0.008 | AG42: 1 | AH42: -0.2418257418 | AI42: -7.571093561 | AJ42: -4.828313737 | AK42: 36.05750686 | AL42: 12.15758156
G43: 24.1 | H43: 49.1096535 | I43: 38.59336576 | J43: 1040.981504 | K43: 0.9680830658 | L43: 0.03191693418 | M43: 8543910.691 | N43: 38.59358633 | O43: 873.1875213 | P43: 0.6109906924 | Q43: 0.3890093076 | R43: 8543910.691 | S43: 38.59942392 | T43: 942.405409 | U43: 1.584448139 | V43: 0.08204671085 | W43: 4.224644665e-07 | X43: 75549.3934 | Y43: 10+ 1+ 3 | AE43: 0.991 | AF43: 0.009 | AG43: 1 | AH43: -0.1700574832 | AI43: -7.617108338 | AJ43: -4.710530702 | AK43: 36.05750686 | AL43: 12.15758156
G44: 25.1 | H44: 49.30768592 | I44: 41.4667383 | J44: 1040.981504 | K44: 0.9662508913 | L44: 0.03374910873 | M44: 8728314.973 | N44: 41.46695458 | O44: 882.1793641 | P44: 0.6179308453 | Q44: 0.3820691547 | R44: 8728314.973 | S44: 41.47319855 | T44: 943.5441086 | U44: 1.563687747 | V44: 0.08833246107 | W44: 4.127415576e-07 | X44: 81768.13821 | Y44: 11+ 1+ 3 | AE44: 0.99 | AF44: 0.01 | AG44: 1 | AH44: -0.1100472725 | AI44: -7.662458643 | AJ44: -4.605170186 | AK44: 36.05750686 | AL44: 12.15758156
G45: 26.1 | H45: 49.51290295 | I45: 44.57671769 | J45: 1040.981504 | K45: 0.9644313735 | L45: 0.03556862654 | M45: 8915656.428 | N45: 44.57702278 | O45: 890.5066578 | P45: 0.624693682 | Q45: 0.375306318 | R45: 8915656.428 | S45: 44.58370965 | T45: 944.6926695 | U45: 1.54384685 | V45: 0.09477225626 | W45: 4.041290359e-07 | X45: 88013.04382 | Y45: 11+ 1+ 3 | AE45: 0.989 | AF45: 0.011 | AG45: 1 | AH45: -0.0594231201 | AI45: -7.70714467 | AJ45: -4.509860006 | AK45: 36.05750686 | AL45: 12.15758156
G46: 27.1 | H46: 49.72469175 | I46: 47.94162265 | J46: 1040.981504 | K46: 0.9626208453 | L46: 0.03737915471 | M46: 9106020.913 | N46: 47.94192557 | O46: 898.2463318 | P46: 0.6313011212 | Q46: 0.3686988788 | R46: 9106020.913 | S46: 47.94920584 | T46: 945.8525864 | U46: 1.524820427 | V46: 0.1013812541 | W46: 3.964966887e-07 | X46: 94273.56085 | Y46: 12+ 1+ 3 | AE46: 0.98 | AF46: 0.02 | AG46: 1 | AH46: 0.1655111394 | AI46: -8.080047412 | AJ46: -3.912023005 | AK46: 36.05750686 | AL46: 12.15758156
G47: 28.1 | H47: 49.94263438 | I47: 51.5818018 | J47: 1040.981504 | K47: 0.9608148269 | L47: 0.03918517307 | M47: 9299498.879 | N47: 51.58211052 | O47: 905.4629156 | P47: 0.6377660116 | Q47: 0.3622339884 | R47: 9299498.879 | S47: 51.58988651 | T47: 947.023523 | U47: 1.506531878 | V47: 0.1081764117 | W47: 3.897388222e-07 | X47: 100542.1345 | Y47: 13+ 1+ 3 | AE47: 0.9807558414 | AF47: 0.01924415863 | AG47: 1 | AH47: =AI47+AJ47+AL47 -> 0.156335958 | AI47: -8.050697886 | AJ47: -3.950547712 | AK47: 36.05750686 | AL47: 12.15758156
G48: 29.1 | H48: 50.16588723 | I48: 55.51714377 | J48: 1040.981504 | K48: 0.9590104729 | L48: 0.04098952712 | M48: 9496124.447 | N48: 55.51746284 | O48: 912.211306 | P48: 0.6441024588 | Q48: 0.3558975412 | R48: 9496124.447 | S48: 55.52588263 | T48: 948.2062356 | U48: 1.488909815 | V48: 0.1151722684 | W48: 3.837497436e-07 | X48: 106813.1713 | Y48: 14+ 1+ 3 | AE48: 0.96 | AF48: 0.04 | AG48: 1 | AH48: 0.1947150515 | AI48: -8.74399068 | AJ48: -3.218875825 | AK48: 36.05750686 | AL48: 12.15758156
G49: 30.1 | H49: 50.39410587 | I49: 59.7709848 | J49: 1040.981504 | K49: 0.9572038078 | L49: 0.04279619224 | M49: 9695973.916 | N49: 59.77142792 | O49: 918.5374813 | P49: 0.6503218936 | Q49: 0.3496781064 | R49: 9695973.916 | S49: 59.78045412 | T49: 949.4010093 | U49: 1.471892331 | V49: 0.1223873942 | W49: 3.784528853e-07 | X49: 113081.9552 | Y49: 14+ 1+ 3 | AE49: 0.955 | AF49: 0.045 | AG49: 1 | AH49: 0.1752525528 | AI49: -8.881236215 | AJ49: -3.101092789 | AK49: 36.05750686 | AL49: 12.15758156
G50: 31.1 | H50: 50.62700873 | I50: 64.36868793 | J50: 1040.981504 | K50: 0.9553917348 | L50: 0.04460826515 | M50: 9899125.709 | N50: 64.36915513 | O50: 924.4801394 | P50: 0.6564384577 | Q50: 0.3435615423 | R50: 9899125.709 | S50: 64.37882554 | T50: 950.6089416 | U50: 1.455417067 | V50: 0.1298406826 | W50: 3.737832908e-07 | X50: 119342.5877 | Y50: 15+ 1+ 3 | AE50: 0.95 | AF50: 0.05 | AG50: 1 | AH50: 0.1526866599 | AI50: -9.009162623 | AJ50: -2.995732274 | AK50: 36.05750686 | AL50: 12.15758156
G51: 32.1 | H51: 50.86407758 | I51: 69.33617453 | J51: 1040.981504 | K51: 0.953571129 | L51: 0.04642887103 | M51: 10105622.77 | N51: 69.33667756 | O51: 930.0735866 | P51: 0.6624597124 | Q51: 0.3375402876 | R51: 10105622.77 | S51: 69.34707621 | T51: 951.8300274 | U51: 1.439440182 | V51: 0.1375506058 | W51: 3.696763292e-07 | X51: 125593.3025 | Y51: 16+ 1+ 3 | AE51: 0.94 | AF51: 0.06 | AG51: 1 | AH51: 0.1036064277 | AI51: -9.240564412 | AJ51: -2.813410717 | AK51: 36.05750686 | AL51: 12.15758156
G52: 33.1 | H52: 51.10502802 | I52: 74.70240605 | J52: 1040.981504 | K52: 0.9517386129 | L52: 0.04826138713 | M52: 10315529.16 | N52: 74.70295651 | O52: 935.3470473 | P52: 0.6683953188 | Q52: 0.3316046812 | R52: 10315529.16 | S52: 74.71413845 | T52: 953.0648849 | U52: 1.423915737 | V52: 0.1455389199 | W52: 3.660818199e-07 | X52: 131832.2422 | Y52: 17+ 1+ 3 | AE52: 0.93 | AF52: 0.07 | AG52: 1 | AH52: 0.05409314825 | AI52: -9.444228371 | AJ52: -2.659260037 | AK52: 36.05750686 | AL52: 12.15758156
G53: 34.1 | H53: 51.34959638 | I53: 80.49857332 | J53: 1040.981504 | K53: 0.9498907627 | L53: 0.05010923731 | M53: 10528906.79 | N53: 80.49918453 | O53: 940.3259856 | P53: 0.6742595406 | Q53: 0.3257404594 | R53: 10528906.79 | S53: 80.51117996 | T53: 954.3154537 | U53: 1.408790986 | V53: 0.153831788 | W53: 3.629558483e-07 | X53: 138058.7682 | Y53: 18+ 1+ 3 | AE53: 0.915 | AF53: 0.085 | AG53: 1 | AH53: -0.01523557516 | AI53: -9.707713109 | AJ53: -2.465104022 | AK53: 36.05750686 | AL53: 12.15758156
G54: 35.1 | H54: 51.59745182 | I54: 86.75765913 | J54: 1040.981504 | K54: 0.9480245214 | L54: 0.05197547857 | M54: 10745805.49 | N54: 86.75834735 | O54: 945.0327722 | P54: 0.6800539569 | Q54: 0.3199460431 | R54: 10745805.49 | S54: 86.77128165 | T54: 955.5807033 | U54: 1.394043093 | V54: 0.1624507622 | W54: 3.602571591e-07 | X54: 144273.2705 | Y54: 19+ 2+ 3 | AE54: 0.91 | AF54: 0.09 | AG54: =SUM(AE54:AF54) -> 1 | AH54: -0.03649355032 | AI54: -9.786129498 | AJ54: =LN(AF54) -> -2.407945609 | AK54: 36.05750686 | AL54: =-($M$9/1000000*($AG$19*1000000-AK54)/(8.314*(273.15+$AG$18))+LN(AK54/($AG$19*1000000))) -> 12.15758156
G55: 36.1 | H55: 51.84853389 | I55: 93.51693696 | J55: 1040.981504 | K55: 0.9461358838 | L55: 0.05386411623 | M55: 10966304.99 | N55: 93.51758743 | O55: 949.486646 | P55: 0.6857958623 | Q55: 0.3142041377 | R55: 10966304.99 | S55: 93.53147467 | T55: 956.8634181 | U55: 1.37961737 | V55: 0.1714303211 | W55: 3.579569775e-07 | X55: 150476.5087 | Y55: 21+ 3+ 3 | AE55: 0.905 | AF55: 0.095 | AG55: 1 | AH55: -0.05674458263 | AI55: -9.860447752 | AJ55: -2.353878387 | AK55: 36.05750686 | AL55: 12.15758156
G56: 37.1 | H56: 52.10238419 | I56: 100.8134555 | J56: 1040.981504 | K56: 0.9442216419 | L56: 0.05577835812 | M56: 11190431.2 | N56: 100.814216 | O56: 953.7054019 | P56: 0.6914808089 | Q56: 0.3085191911 | R56: 11190431.2 | S56: 100.8291901 | T56: 958.1616692 | U56: 1.365506649 | V56: 0.1807938038 | W56: 3.560176084e-07 | X56: 156673.0319 | Y56: 22+ 3+ 3 | AE56: 0.9 | AF56: 0.1 | AG56: 1 | AH56: -0.0759796456 | AI56: -9.930976109 | AJ56: -2.302585093 | AK56: 36.05750686 | AL56: 12.15758156
G57: 38.1 | H57: 52.35912624 | I57: 108.6915644 | J57: 1040.981504 | K57: 0.9422762446 | L57: 0.05772375539 | M57: 11418281.51 | N57: 108.6924639 | O57: 957.703796 | P57: 0.6971282372 | Q57: 0.3028717628 | R57: 11418281.51 | S57: 108.7082927 | T57: 959.4788935 | U57: 1.351654107 | V57: 0.1905881052 | W57: 3.544222566e-07 | X57: 162867.1854 | Y57: 23+ 4+ 3 | AE57: 0.895 | AF57: 0.105 | AG57: 1 | AH57: -0.09420595287 | AI57: -9.997992581 | AJ57: -2.253794929 | AK57: 36.05750686 | AL57: 12.15758156
G58: 39.1 | H58: 52.61827691 | I58: 117.1938057 | J58: 1040.981504 | K58: 0.9402979815 | L58: 0.05970201849 | M58: 11649875.98 | N58: 117.1947273 | O58: 961.4954363 | P58: 0.7027391708 | Q58: 0.2972608292 | R58: 11649875.98 | S58: 117.2117887 | T58: 960.8144241 | U58: 1.338046918 | V58: 0.2008405166 | W58: 3.531380384e-07 | X58: 169061.4207 | Y58: 25+ 5+ 3 | Z58: Upper pressure bound reached. | AE58: 0.89 | AF58: 0.11 | AG58: 1 | AH58: -0.1114390882 | AI58: -10.06174573 | AJ58: -2.207274913 | AK58: 36.05750686 | AL58: 12.15758156
AE59: 0.885 | AF59: 0.115 | AG59: 1 | AH59: -0.1277056643 | AI59: -10.12246407 | AJ59: -2.162823151 | AK59: 36.05750686 | AL59: 12.15758156
AE60: 0.88 | AF60: 0.12 | AG60: 1 | AH60: -0.1430349472 | AI60: -10.18035297 | AJ60: -2.120263536 | AK60: 36.05750686 | AL60: 12.15758156
AE61: 0.8 | AF61: 0.2 | AG61: 1 | AH61: -0.2885774737 | AI61: -10.83672112 | AJ61: -1.609437912 | AK61: 36.05750686 | AL61: 12.15758156
AE62: 0.78 | AF62: 0.22 | AG62: 1 | AH62: -0.3040262499 | AI62: -10.94748007 | AJ62: -1.514127733 | AK62: 36.05750686 | AL62: 12.15758156
AE63: 0.76 | AF63: 0.24 | AG63: 1 | AH63: =AI63+AJ63+AL63 -> -0.3140353712 | AI63: -11.04450057 | AJ63: -1.427116356 | AK63: 36.05750686 | AL63: 12.15758156
AE64: 0.74 | AF64: 0.26 | AG64: 1 | AH64: -0.3196162732 | AI64: -11.13012418 | AJ64: -1.347073648 | AK64: 36.05750686 | AL64: 12.15758156
AE65: 0.72 | AF65: 0.28 | AG65: 1 | AH65: -0.3215860609 | AI65: -11.20620194 | AJ65: -1.272965676 | AK65: 36.05750686 | AL65: 12.15758156
AE66: 0.7 | AF66: 0.3 | AG66: 1 | AH66: -0.3206046395 | AI66: -11.27421339 | AJ66: -1.203972804 | AK66: 36.05750686 | AL66: 12.15758156
AE67: 0.68 | AF67: 0.32 | AG67: 1 | AH67: -0.3172053566 | AI67: -11.33535263 | AJ67: -1.139434283 | AK67: 36.05750686 | AL67: 12.15758156
AE68: 0.66 | AF68: 0.34 | AG68: 1 | AH68: -0.311819881 | AI68: -11.39059178 | AJ68: -1.078809661 | AK68: 36.05750686 | AL68: 12.15758156
AE69: 0.64 | AF69: 0.36 | AG69: 1 | AH69: -0.3047975681 | AI69: -11.44072788 | AJ69: -1.021651248 | AK69: 36.05750686 | AL69: 12.15758156
AE70: 0.62 | AF70: 0.38 | AG70: 1 | AH70: -0.2964222697 | AI70: -11.4864198 | AJ70: -0.9675840263 | AK70: 36.05750686 | AL70: 12.15758156
AE71: 0.5056409828 | AF71: 0.4943590172 | AG71: 1 | AH71: -0.2317143086 | AI71: -11.68480259 | AJ71: -0.7044932703 | AK71: 36.05750686 | AL71: 12.15758156
AE72: 0.503621331 | AF72: 0.496378669 | AG72: 1 | AH72: -0.23039701 | AI72: -11.68756237 | AJ72: -0.7004161979 | AK72: 36.05750686 | AL72: 12.15758156
AE73: 0.5 | AF73: 0.5 | AG73: 1 | AH73: -0.2280241612 | AI73: -11.69245854 | AJ73: -0.6931471806 | AK73: 36.05750686 | AL73: 12.15758156
AE74: 0.45 | AF74: 0.55 | AG74: 1 | AH74: -0.193994195 | AI74: -11.75373875 | AJ74: -0.5978370008 | AK74: 36.05750686 | AL74: 12.15758156
AE75: 0.4 | AF75: 0.6 | AG75: 1 | AH75: -0.1580082473 | AI75: -11.80476418 | AJ75: -0.5108256238 | AK75: 36.05750686 | AL75: 12.15758156
AE76: 0.35 | AF76: 0.65 | AG76: 1 | AH76: -0.1204299457 | AI76: -11.84722859 | AJ76: -0.4307829161 | AK76: 36.05750686 | AL76: 12.15758156
AE77: 0.3 | AF77: 0.7 | AG77: 1 | AH77: -0.08141795755 | AI77: -11.88232457 | AJ77: -0.3566749439 | AK77: 36.05750686 | AL77: 12.15758156
AE78: 0.25 | AF78: 0.75 | AG78: 1 | AH78: -0.0410021174 | AI78: -11.9109016 | AJ78: -0.2876820725 | AK78: 36.05750686 | AL78: 12.15758156
AE79: 0.2 | AF79: 0.8 | AG79: 1 | AH79: 0.0008685664787 | AI79: -11.93356944 | AJ79: -0.2231435513 | AK79: 36.05750686 | AL79: 12.15758156
AE80: 0.15 | AF80: 0.85 | AG80: 1 | AH80: 0.04429528209 | AI80: -11.95076734 | AJ80: -0.1625189295 | AK80: 36.05750686 | AL80: 12.15758156
AE81: 0.1 | AF81: 0.9 | AG81: 1 | AH81: 0.08940972641 | AI81: -11.96281131 | AJ81: -0.1053605157 | AK81: 36.05750686 | AL81: 12.15758156
AE82: 0.05 | AF82: 0.95 | AG82: 1 | AH82: 0.1363613306 | AI82: -11.96992693 | AJ82: -0.05129329439 | AK82: 36.05750686 | AL82: 12.15758156
AE83: 0.04 | AF83: 0.96 | AG83: 1 | AH83: 0.1459859984 | AI83: -11.97077356 | AJ83: -0.04082199452 | AK83: 36.05750686 | AL83: 12.15758156
AE84: 0.03 | AF84: 0.97 | AG84: 1 | AH84: 0.1556917976 | AI84: -11.97143055 | AJ84: -0.03045920748 | AK84: 36.05750686 | AL84: 12.15758156
AE85: 0.02 | AF85: 0.98 | AG85: 1 | AH85: 0.1654800327 | AI85: -11.97189882 | AJ85: -0.02020270732 | AK85: 36.05750686 | AL85: 12.15758156
AE86: 0.01 | AF86: 0.99 | AG86: =SUM(AE86:AF86) -> 1 | AH86: 0.1753520119 | AI86: -11.97217921 | AJ86: -0.01005033585 | AK86: 36.05750686 | AL86: =-($M$9/1000000*($AG$19*1000000-AK86)/(8.314*(273.15+$AG$18))+LN(AK86/($AG$19*1000000))) -> 12.15758156
AE87: =(1-AF87) -> 0.001 | AF87: 0.999 | AG87: 1 | AH87: =AI87+AJ87+AL87 -> 0.1843094781 | AI87: =LnPhiV_i_Tci_Pci_wi_kijm_lijm_T_P_xyi(2,$F$8:$F$9,$G$8:$G$9,$H$8:$H$9,$R$8:$S$9,$V$8:$W$9,$AG$18,$AG$19*1000000,AE87:AF87) -> -11.97227158 | AJ87: -0.001000500334 | AK87: =EXP($N$9+$O$9/($AG$18+273.15+$P$9)) -> 36.05750686 | AL87: 12.15758156

Sheet Database
B1: Property database
I2: Source: Properties of Gases and Liquids, 4th Ed. R. C. Reid, J. M. Prausnitz, and B. E. Poling, McGraw-Hill, New York, 1987. AND from Properties of Gases and Liquids, 3rd Ed., R. C. Reid, J. M. Prausnitz, and T. K. Sherwood, McGraw-Hill, New York, 1977.
A3: Solvents | B3: MW | C3: Tc [K] | D3: Pc [MPa] | E3: w | F3: Vc [cm3/mol] | H3: Tb [K] | I3: Notes
A4: Carbon Dioxide | B4: 44.01 | C4: 304.1 | D4: 7.38 | E4: 0.225 | F4: 94 | G4: CO2 | H4: 194.7
A5: Ethane | B5: 30.07 | C5: 305.4 | D5: 4.88 | E5: 0.098 | F5: 148 | G5: C2H6 | H5: 184.5
A6: Propane | B6: 44.094 | C6: 369.8 | D6: 4.25 | E6: 0.153 | F6: 203 | G6: C3H8 | H6: 231.1
A7: Water | B7: 18.015 | C7: 647.3 | D7: 22.12 | E7: 0.344 | F7: 57.1 | G7: H2O | H7: 373.2
A8: Toluene | B8: 92.141 | C8: 591.7 | D8: 4.11278 | E8: 0.257 | F8: 316 | G8: C7H8 | H8: 383.8
A9: m-Xylene | B9: 106.168 | C9: 617 | D9: 3.5455 | E9: 0.331 | F9: 376 | G9: C8H10 | H9: 412.3
A10: Ammonia | B10: 17.031 | C10: 405.6 | D10: 11.27469 | E10: 0.25 | F10: 72.5 | G10: NH3 | H10: 239.7
A13: Common co-solvents
A14: Methanol | B14: 32.042 | C14: 512.6 | D14: 8.09 | E14: 0.556 | F14: 118 | G14: CH4O | H14: 337.8
A15: Acetone | B15: 58.08 | C15: 508.1 | D15: 4.7 | E15: 0.304 | F15: 209 | G15: C3H6O | H15: 329.4
A16: Dimethyl ether | B16: 46.069 | C16: 400 | D16: 5.24 | E16: 0.192 | F16: 178 | G16: C2H6O | H16: 248.3
A17: Ethanol | B17: 46.069 | C17: 516.2 | D17: 6.14 | E17: 0.635 | F17: 167 | G17: C2H6O | H17: 351.5
A18: Isopropyl alcohol | B18: 60.096 | C18: 508.3 | D18: 4.76 | E18: 0.665 | F18: 220 | G18: C3H8O | H18: 355.4
A20: Solutes | B20: MW | C20: Tc [K] | D20: Pc [MPa] | E20: w | F20: Vc [cm3/mol] | H20: Tb [K]
A21: Methane | B21: 16.043 | C21: 190.6 | D21: 4.59902 | E21: 0.008 | F21: 99 | G21: CH4 | H21: 111.7
A22: Benzene | B22: 78.114 | C22: 562.2 | D22: 4.89 | E22: 0.212 | F22: 259 | G22: C6H6 | H22: 353.3
A23: n-Hexane | B23: 86.178 | C23: 507.5 | D23: 3.01 | E23: 0.299 | F23: 370 | G23: C6H14 | H23: 341.9
A24: Naphthalene | B24: 128.174 | C24: 748.4 | D24: 4.05 | E24: 0.302 | F24: 410 | G24: C10H8 | H24: 491.1
A25: n-Octane | B25: 114.232 | C25: 568.8 | D25: 2.49 | E25: 0.398 | F25: 492 | G25: C8H18 | H25: 398.8
A26: n-Hexadecane | B26: 224.432 | C26: 717 | D26: 1.42 | E26: 0.742 | F26: 931.5 | G26: C16H34 | H26: 560 | I26: Vc estimated with Joback Method
A27: isoprene (1,3-butadiene, 2-methyl) | B27: 68.119 | C27: 484 | D27: 3.85 | E27: 0.164 | F27: 276 | G27: C5H8 | H27: 307.2 | I27: Properties from Reid et al. (1977)
A28: Maleic Anhydride | B28: 98.0582 | C28: 719.4 | D28: 5.99 | E28: 0.443 | F28: 225.5 | G28: C4H2O3 | H28: 472.8
A29: 4-methyl-4-cyclohexene-1,2-dicarboxylic anhydride | B29: 166.1772 | C29: 849.1 | D29: 3.61 | E29: 0.588 | F29: 450.5 | G29: C9H10O3 | H29: 598.3
A30: Ethyl Vinyl Ether | B30: 72.10572 | C30: 475.1 | D30: 4.02 | E30: 0.265 | F30: 258.5 | G30: C4H8O | H30: 308.8
A31: Biphenyl | B31: 154.211 | C31: 773 | D31: 3.38 | E31: 0.404 | F31: 497 | G31: C12H10 | H31: 528.23
A32: Others | B32: MW | C32: Tc [K] | D32: Pc [MPa] | E32: w | F32: Vc [cm3/mol] | H32: Tb [K]
A33: Hydrogen | B33: 2.016 | C33: 33.2 | D33: 1.29664 | E33: -0.22 | F33: 65 | G33: H2 | H33: 20.4
A34: Hydrogen - Effective Critical Constants | B34: 2.016 | C34: 43.6 | D34: 2.05 | E34: 0 | F34: 51.5 | G34: H2 | H34: 20.4
A35: Nitrogen | B35: 28.013 | C35: 126.2 | D35: 3.39355 | E35: 0.04 | F35: 89.5 | G35: N2 | H35: 77.4
A36: Oxygen | B36: 31.999 | C36: 154.6 | D36: 5.04474 | E36: 0.021 | F36: 73.4 | G36: O2 | H36: 90.2
A37: Carbon Monoxide | B37: 28.01 | C37: 132.9 | D37: 3.49485 | E37: 0.295 | F37: 93.1 | G37: CO | H37: 81.7
